[Event "Late-Titled-Tuesday-Blitz-January-16-2024"]
[Site "Chess.com"]
[Date "2024.01.16"]
[Round "9"]
[White "Bigfish1995"]
[Black "AntonSmirnov"]
[Result "1/2-1/2"]
[WhiteElo "3082"]
[BlackElo "2974"]
[TimeControl "180+1"]
[EndTime "15:48:08 PST"]
[Termination "Game drawn - insufficient material"]

1. e4 {[%clk 0:02:59.6]} 1... e5 {[%clk 0:02:58.4]} 2. Nf3 {[%clk 0:02:59.8]}
2... Nf6 {[%clk 0:02:58.6]} 3. d4 {[%clk 0:02:58.3]} 3... Nxe4 {[%clk
0:02:55.9]} 4. Bd3 {[%clk 0:02:55.6]} 4... d5 {[%clk 0:02:55.9]} 5. Nxe5 {[%clk
0:02:51.4]} 5... Nd7 {[%clk 0:02:56]} 6. O-O {[%clk 0:02:48]} 6... Nxe5 {[%clk
0:02:53.2]} 7. dxe5 {[%clk 0:02:48.9]} 7... Nc5 {[%clk 0:02:53.2]} 8. Be2 {[%clk
0:02:43.6]} 8... c6 {[%clk 0:02:50.7]} 9. Nd2 {[%clk 0:02:37.8]} 9... Be7 {[%clk
0:02:49.5]} 10. Nf3 {[%clk 0:02:29.5]} 10... O-O {[%clk 0:02:41.3]} 11. Be3
{[%clk 0:02:30.1]} 11... f6 {[%clk 0:02:31.4]} 12. c4 {[%clk 0:02:26.9]} 12...
fxe5 {[%clk 0:02:16.5]} 13. Nxe5 {[%clk 0:02:14.7]} 13... Qc7 {[%clk 0:01:56.7]}
14. f4 {[%clk 0:01:53.8]} 14... Be6 {[%clk 0:01:42.7]} 15. cxd5 {[%clk
0:01:50.6]} 15... Bxd5 {[%clk 0:01:26.7]} 16. Rc1 {[%clk 0:01:48.2]} 16... Qa5
{[%clk 0:01:26.2]} 17. Bc4 {[%clk 0:01:25]} 17... Rad8 {[%clk 0:01:23.3]} 18.
Qg4 {[%clk 0:01:19.9]} 18... Rf6 {[%clk 0:01:09.4]} 19. a3 {[%clk 0:01:12.1]}
19... Ne4 {[%clk 0:01:03]} 20. Bxd5+ {[%clk 0:01:05.3]} 20... Qxd5 {[%clk
0:01:02]} 21. Rfd1 {[%clk 0:01:04.4]} 21... Qe6 {[%clk 0:01:02]} 22. Rxd8+
{[%clk 0:01:01.5]} 22... Bxd8 {[%clk 0:01:01.8]} 23. Qxe6+ {[%clk 0:00:51.6]}
23... Rxe6 {[%clk 0:01:01.7]} 24. Bxa7 {[%clk 0:00:52]} 24... g5 {[%clk
0:00:55.8]} 25. Nd3 {[%clk 0:00:41.8]} 25... Rd6 {[%clk 0:00:49.7]} 26. Re1
{[%clk 0:00:21.8]} 26... Rxd3 {[%clk 0:00:38.1]} 27. Rxe4 {[%clk 0:00:21.7]}
27... gxf4 {[%clk 0:00:34]} 28. Rd4 {[%clk 0:00:18.5]} 28... Rxd4 {[%clk
0:00:30.2]} 29. Bxd4 {[%clk 0:00:19.4]} 29... Kf7 {[%clk 0:00:28.7]} 30. Kf2
{[%clk 0:00:19.8]} 30... Ke6 {[%clk 0:00:29]} 31. Kf3 {[%clk 0:00:20.2]} 31...
Kf5 {[%clk 0:00:29.4]} 32. a4 {[%clk 0:00:18.6]} 32... Be7 {[%clk 0:00:28.9]}
33. b3 {[%clk 0:00:18.5]} 33... h5 {[%clk 0:00:28.9]} 34. Bc3 {[%clk 0:00:17.3]}
34... Bd6 {[%clk 0:00:29.2]} 35. Bd2 {[%clk 0:00:15.7]} 35... Bc7 {[%clk
0:00:28.9]} 36. Be1 {[%clk 0:00:14.6]} 36... Bd6 {[%clk 0:00:29.3]} 37. Bc3
{[%clk 0:00:15]} 37... Bc7 {[%clk 0:00:29.7]} 38. Bd2 {[%clk 0:00:14.7]} 38...
Bd6 {[%clk 0:00:30.1]} 39. Ba5 {[%clk 0:00:11.3]} 39... Be5 {[%clk 0:00:30.2]}
40. Bb6 {[%clk 0:00:11.3]} 40... Bd6 {[%clk 0:00:30.3]} 41. Ba7 {[%clk 0:00:10]}
41... Bc7 {[%clk 0:00:30.3]} 42. Bf2 {[%clk 0:00:09.4]} 42... Bd6 {[%clk
0:00:30.6]} 43. Be1 {[%clk 0:00:09.8]} 43... Bc7 {[%clk 0:00:30.9]} 44. b4
{[%clk 0:00:10.2]} 44... Bd6 {[%clk 0:00:31.1]} 45. Bd2 {[%clk 0:00:10.5]} 45...
Be5 {[%clk 0:00:31.1]} 46. b5 {[%clk 0:00:09.9]} 46... cxb5 {[%clk 0:00:31.1]}
47. axb5 {[%clk 0:00:10.6]} 47... Bd6 {[%clk 0:00:31.6]} 48. Bc3 {[%clk
0:00:10.7]} 48... Bc7 {[%clk 0:00:31.8]} 49. Bd4 {[%clk 0:00:10.8]} 49... Bd6
{[%clk 0:00:32.1]} 50. b6 {[%clk 0:00:10.8]} 50... Bb4 {[%clk 0:00:32.2]} 51.
Bf2 {[%clk 0:00:09.7]} 51... Bd2 {[%clk 0:00:32.3]} 52. Bc5 {[%clk 0:00:09.9]}
52... Bc3 {[%clk 0:00:32]} 53. Bd6 {[%clk 0:00:10]} 53... Bd2 {[%clk 0:00:31.6]}
54. Bc7 {[%clk 0:00:10.1]} 54... Bc1 {[%clk 0:00:31.4]} 55. Bd6 {[%clk
0:00:07.5]} 55... Bd2 {[%clk 0:00:31.1]} 56. Bb8 {[%clk 0:00:06.6]} 56... Bc1
{[%clk 0:00:31.1]} 57. Bc7 {[%clk 0:00:07.2]} 57... Bd2 {[%clk 0:00:31.2]} 58.
Ke2 {[%clk 0:00:07.5]} 58... Be3 {[%clk 0:00:29.3]} 59. Kd3 {[%clk 0:00:08]}
59... Bg1 {[%clk 0:00:29.5]} 60. h3 {[%clk 0:00:08]} 60... Bh2 {[%clk
0:00:25.4]} 61. Kd4 {[%clk 0:00:06.9]} 61... Bg3 {[%clk 0:00:20.4]} 62. Kd5
{[%clk 0:00:07.1]} 62... Bh2 {[%clk 0:00:20.7]} 63. Bd6 {[%clk 0:00:06.3]} 63...
Bg1 {[%clk 0:00:19.6]} 64. Bc7 {[%clk 0:00:05.1]} 64... Bh2 {[%clk 0:00:19.7]}
65. Bd8 {[%clk 0:00:05.4]} 65... Bg3 {[%clk 0:00:18.4]} 66. Be7 {[%clk
0:00:04.6]} 66... Bh2 {[%clk 0:00:18.6]} 67. Bc5 {[%clk 0:00:04.7]} 67... Bg3
{[%clk 0:00:18.8]} 68. Bg1 {[%clk 0:00:04.2]} 68... Kf6 {[%clk 0:00:16.1]} 69.
Ke4 {[%clk 0:00:04.4]} 69... Ke6 {[%clk 0:00:16.6]} 70. Bd4 {[%clk 0:00:04.8]}
70... Bh2 {[%clk 0:00:16.1]} 71. Be5 {[%clk 0:00:04.2]} 71... Bg1 {[%clk
0:00:16.5]} 72. Bc7 {[%clk 0:00:04.8]} 72... Be3 {[%clk 0:00:16.5]} 73. Bd8
{[%clk 0:00:04.3]} 73... Kd7 {[%clk 0:00:14.6]} 74. Bc7 {[%clk 0:00:05]} 74...
Kc6 {[%clk 0:00:15.1]} 75. Bxf4 {[%clk 0:00:05.6]} 75... Bxb6 {[%clk 0:00:15.1]}
76. Kf5 {[%clk 0:00:06.2]} 76... Bd8 {[%clk 0:00:15.2]} 77. g4 {[%clk
0:00:03.4]} 77... hxg4 {[%clk 0:00:15.3]} 78. hxg4 {[%clk 0:00:04.3]} 78... b5
{[%clk 0:00:15.9]} 79. g5 {[%clk 0:00:04.3]} 79... Bxg5 {[%clk 0:00:15.9]} 80.
Bxg5 {[%clk 0:00:05.2]} 80... Kd5 {[%clk 0:00:16.5]} 81. Bf6 {[%clk 0:00:06.1]}
81... b4 {[%clk 0:00:17.2]} 82. Kf4 {[%clk 0:00:06.4]} 82... b3 {[%clk
0:00:18.1]} 83. Ke3 {[%clk 0:00:06.9]} 83... b2 {[%clk 0:00:17.9]} 84. Bxb2
{[%clk 0:00:07.8]} 1/2-1/2

[Event "Late-Titled-Tuesday-Blitz-January-16-2024"]
[Site "Chess.com"]
[Date "2024.01.16"]
[Round "10"]
[White "RuleOfTwo"]
[Black "Arteler"]
[Result "0-1"]
[WhiteElo "2568"]
[BlackElo "2499"]
[TimeControl "180+1"]
[EndTime "15:52:47 PST"]
[Termination "Arteler won by resignation"]

1. d4 {[%clk 0:03:00.9]} 1... d5 {[%clk 0:02:53.9]} 2. c4 {[%clk 0:03:00.9]}
2... c6 {[%clk 0:02:53.8]} 3. Nf3 {[%clk 0:03:00.7]} 3... Nf6 {[%clk 0:02:54.1]}
4. e3 {[%clk 0:03:01.1]} 4... a6 {[%clk 0:02:54.7]} 5. Nbd2 {[%clk 0:02:59.2]}
5... Bf5 {[%clk 0:02:55.1]} 6. Be2 {[%clk 0:02:54]} 6... e6 {[%clk 0:02:55]} 7.
O-O {[%clk 0:02:54]} 7... Nbd7 {[%clk 0:02:54.4]} 8. b3 {[%clk 0:02:54.1]} 8...
Be7 {[%clk 0:02:54.7]} 9. Bb2 {[%clk 0:02:54.7]} 9... O-O {[%clk 0:02:55.4]} 10.
Rc1 {[%clk 0:02:54.1]} 10... b5 {[%clk 0:02:56]} 11. cxd5 {[%clk 0:02:52.8]}
11... cxd5 {[%clk 0:02:56.9]} 12. Ne5 {[%clk 0:02:53.1]} 12... Nxe5 {[%clk
0:02:56.9]} 13. dxe5 {[%clk 0:02:54]} 13... Nd7 {[%clk 0:02:57.6]} 14. Nf3
{[%clk 0:02:52.5]} 14... Qa5 {[%clk 0:02:52.5]} 15. Nd4 {[%clk 0:02:36.5]} 15...
Qxa2 {[%clk 0:02:47.8]} 16. Nxf5 {[%clk 0:02:00]} 16... exf5 {[%clk 0:02:48.7]}
17. Qd4 {[%clk 0:01:44.9]} 17... Nc5 {[%clk 0:02:18.7]} 18. Ra1 {[%clk
0:01:09.9]} 18... Qxb3 {[%clk 0:02:18.5]} 19. Ra3 {[%clk 0:01:10]} 19... Qc2
{[%clk 0:02:18.9]} 20. Rc1 {[%clk 0:01:08.6]} 20... Qxe2 {[%clk 0:02:18]} 0-1

[Event "Late-Titled-Tuesday-Blitz-January-16-2024"]
[Site "Chess.com"]
[Date "2024.01.16"]
[Round "10"]
[White "RianKapriaga"]
[Black "ritanovikova"]
[Result "1-0"]
[WhiteElo "2363"]
[BlackElo "2188"]
[TimeControl "180+1"]
[EndTime "15:52:52 PST"]
[Termination "RianKapriaga won by resignation"]

1. d4 {[%clk 0:03:00.9]} 1... g6 {[%clk 0:02:59.6]} 2. Nf3 {[%clk 0:03:00.6]}
2... Bg7 {[%clk 0:03:00.5]} 3. Nc3 {[%clk 0:02:58.6]} 3... d6 {[%clk 0:03:00.8]}
4. e4 {[%clk 0:02:58.5]} 4... Nd7 {[%clk 0:03:00.1]} 5. Be2 {[%clk 0:02:58.8]}
5... e5 {[%clk 0:03:00.2]} 6. O-O {[%clk 0:02:56.3]} 6... Ne7 {[%clk 0:02:58.5]}
7. a4 {[%clk 0:02:54.9]} 7... O-O {[%clk 0:02:55.6]} 8. dxe5 {[%clk 0:02:54.5]}
8... Nxe5 {[%clk 0:02:54.8]} 9. Nxe5 {[%clk 0:02:54.2]} 9... dxe5 {[%clk
0:02:54.9]} 10. Bc4 {[%clk 0:02:46.9]} 10... c6 {[%clk 0:02:51.8]} 11. a5 {[%clk
0:02:45.9]} 11... Qc7 {[%clk 0:02:50.6]} 12. b3 {[%clk 0:02:44.5]} 12... Bd7
{[%clk 0:02:36.9]} 13. Ba3 {[%clk 0:02:43]} 13... Rfe8 {[%clk 0:02:34.3]} 14.
Qf3 {[%clk 0:02:24.2]} 14... Nc8 {[%clk 0:02:20.9]} 15. Qxf7+ {[%clk 0:02:16.4]}
15... Kh8 {[%clk 0:02:20.3]} 16. Rfd1 {[%clk 0:02:12.4]} 16... Rd8 {[%clk
0:01:51.4]} 17. Rd3 {[%clk 0:02:04.1]} 17... b5 {[%clk 0:01:45.4]} 18. Be6
{[%clk 0:01:57.5]} 18... c5 {[%clk 0:01:45.1]} 19. Rxd7 {[%clk 0:01:52.7]} 1-0

[Event "Late-Titled-Tuesday-Blitz-January-16-2024"]
[Site "Chess.com"]
[Date "2024.01.16"]
[Round "10"]
[White "dianamirza"]
[Black "SmirnovTimofey2000"]
[Result "1-0"]
[WhiteElo "1999"]
[BlackElo "1956"]
[TimeControl "180+1"]
[EndTime "15:53:21 PST"]
[Termination "dianamirza won by resignation"]

1. e4 {[%clk 0:02:56.8]} 1... e5 {[%clk 0:02:59.9]} 2. Nf3 {[%clk 0:02:56.3]}
2... Nf6 {[%clk 0:03:00.1]} 3. Nxe5 {[%clk 0:02:56.2]} 3... d6 {[%clk
0:02:59.9]} 4. Nf3 {[%clk 0:02:57.1]} 4... Nxe4 {[%clk 0:03:00.2]} 5. Nc3 {[%clk
0:02:58]} 5... Nxc3 {[%clk 0:03:00.1]} 6. dxc3 {[%clk 0:02:58.9]} 6... Be7
{[%clk 0:03:00.4]} 7. Bf4 {[%clk 0:02:59.8]} 7... Be6 {[%clk 0:02:58.8]} 8. Qd2
{[%clk 0:02:59.4]} 8... Nc6 {[%clk 0:02:47.2]} 9. O-O-O {[%clk 0:02:58.5]} 9...
O-O {[%clk 0:02:25.7]} 10. Bd3 {[%clk 0:02:45.9]} 10... h6 {[%clk 0:02:24.1]}
11. g4 {[%clk 0:02:42.4]} 11... g5 {[%clk 0:02:04.4]} 12. Be3 {[%clk 0:02:15.5]}
12... Ne5 {[%clk 0:01:54.3]} 13. Nxe5 {[%clk 0:02:13]} 13... dxe5 {[%clk
0:01:54.6]} 14. h4 {[%clk 0:02:10.9]} 14... Bxg4 {[%clk 0:01:46.9]} 15. Rdg1
{[%clk 0:02:04.4]} 15... Bf3 {[%clk 0:01:25.7]} 16. hxg5 {[%clk 0:02:00.8]}
16... Bxg5 {[%clk 0:01:17.6]} 17. Bxg5 {[%clk 0:01:56.8]} 17... hxg5 {[%clk
0:00:58.3]} 18. Rxg5+ {[%clk 0:01:55.8]} 1-0

[Event "Late-Titled-Tuesday-Blitz-January-16-2024"]
[Site "Chess.com"]
[Date "2024.01.16"]
[Round "10"]
[White "tolimachess"]
[Black "sergeikim"]
[Result "1-0"]
[WhiteElo "2460"]
[BlackElo "2542"]
[TimeControl "180+1"]
[EndTime "15:53:47 PST"]
[Termination "tolimachess won by resignation"]

1. e4 {[%clk 0:03:00.9]} 1... e5 {[%clk 0:02:58.8]} 2. Nc3 {[%clk 0:02:58.9]}
2... Nf6 {[%clk 0:02:58]} 3. g3 {[%clk 0:02:59]} 3... g6 {[%clk 0:02:57.4]} 4.
Bg2 {[%clk 0:02:59.6]} 4... Bg7 {[%clk 0:02:57.8]} 5. Nge2 {[%clk 0:03:00.3]}
5... O-O {[%clk 0:02:57.9]} 6. O-O {[%clk 0:03:01.2]} 6... c6 {[%clk 0:02:57.7]}
7. d4 {[%clk 0:03:01.2]} 7... d6 {[%clk 0:02:57.8]} 8. dxe5 {[%clk 0:03:00.7]}
8... dxe5 {[%clk 0:02:57.7]} 9. Qxd8 {[%clk 0:02:59.2]} 9... Rxd8 {[%clk
0:02:57.1]} 10. h3 {[%clk 0:02:59.8]} 10... a5 {[%clk 0:02:52.1]} 11. a3 {[%clk
0:02:59.8]} 11... Na6 {[%clk 0:02:44.5]} 12. Be3 {[%clk 0:02:59.7]} 12... Be6
{[%clk 0:02:39.3]} 13. Rfd1 {[%clk 0:02:51.3]} 13... Nd7 {[%clk 0:02:37]} 14.
Na4 {[%clk 0:02:39.8]} 14... Bf8 {[%clk 0:02:35.8]} 15. Nb6 {[%clk 0:02:37.7]}
15... Nxb6 {[%clk 0:02:33.3]} 16. Bxb6 {[%clk 0:02:38.6]} 16... Rxd1+ {[%clk
0:02:32.7]} 17. Rxd1 {[%clk 0:02:39.5]} 17... a4 {[%clk 0:02:33]} 18. Nc3 {[%clk
0:02:37.3]} 18... Nc5 {[%clk 0:02:31.8]} 19. f4 {[%clk 0:02:27.2]} 19... Nd7
{[%clk 0:02:25.8]} 20. Bc7 {[%clk 0:02:26.8]} 20... exf4 {[%clk 0:02:24.7]} 21.
gxf4 {[%clk 0:02:25.6]} 21... Bc5+ {[%clk 0:02:13.2]} 22. Kh2 {[%clk 0:02:18.7]}
22... Kf8 {[%clk 0:02:13.1]} 23. Bd6+ {[%clk 0:02:17.2]} 23... Bxd6 {[%clk
0:02:12.5]} 24. Rxd6 {[%clk 0:02:18.1]} 24... Ke7 {[%clk 0:02:12.2]} 25. e5
{[%clk 0:02:11.4]} 25... Nc5 {[%clk 0:02:11.6]} 26. Rd4 {[%clk 0:02:06.1]} 26...
f6 {[%clk 0:02:07.3]} 27. Kg3 {[%clk 0:02:01]} 27... fxe5 {[%clk 0:02:05.8]} 28.
fxe5 {[%clk 0:02:01.9]} 28... g5 {[%clk 0:02:02.7]} 29. Bf3 {[%clk 0:01:59]}
29... Rf8 {[%clk 0:01:52.5]} 30. Nxa4 {[%clk 0:01:55.4]} 30... Nxa4 {[%clk
0:01:51.9]} 31. Rxa4 {[%clk 0:01:56.3]} 31... Bxh3 {[%clk 0:01:45.3]} 32. Ra7
{[%clk 0:01:56.6]} 32... Bd7 {[%clk 0:01:35.7]} 33. Rxb7 {[%clk 0:01:55]} 33...
Rc8 {[%clk 0:01:30.7]} 34. Bg4 {[%clk 0:01:52.7]} 34... Rd8 {[%clk 0:01:27.6]}
35. e6 {[%clk 0:01:52.9]} 35... Kd6 {[%clk 0:01:22.7]} 36. Rxd7+ {[%clk
0:01:52.6]} 36... Rxd7 {[%clk 0:01:22.5]} 37. exd7 {[%clk 0:01:53.5]} 37... Ke7
{[%clk 0:01:22.9]} 38. a4 {[%clk 0:01:49.6]} 1-0

[Event "Late-Titled-Tuesday-Blitz-January-16-2024"]
[Site "Chess.com"]
[Date "2024.01.16"]
[Round "10"]
[White "Actuary44"]
[Black "Lion-Al-Messi"]
[Result "1-0"]
[WhiteElo "2511"]
[BlackElo "2596"]
[TimeControl "180+1"]
[EndTime "15:53:53 PST"]
[Termination "Actuary44 won by resignation"]

1. e4 {[%clk 0:02:50.1]} 1... e6 {[%clk 0:02:59.8]} 2. d4 {[%clk 0:02:50.4]}
2... d5 {[%clk 0:03:00]} 3. Nc3 {[%clk 0:02:51.3]} 3... Nf6 {[%clk 0:03:00.2]}
4. e5 {[%clk 0:02:51.2]} 4... Nfd7 {[%clk 0:03:00.4]} 5. f4 {[%clk 0:02:52.1]}
5... c5 {[%clk 0:03:00.7]} 6. dxc5 {[%clk 0:02:52.6]} 6... Nc6 {[%clk
0:02:59.9]} 7. Nf3 {[%clk 0:02:53.5]} 7... Bxc5 {[%clk 0:02:59.8]} 8. Bd3 {[%clk
0:02:53.7]} 8... f6 {[%clk 0:02:55.7]} 9. Qe2 {[%clk 0:02:53.4]} 9... fxe5
{[%clk 0:02:55]} 10. fxe5 {[%clk 0:02:54.3]} 10... Qc7 {[%clk 0:02:36.5]} 11.
Bf4 {[%clk 0:02:41.8]} 11... O-O {[%clk 0:02:35.8]} 12. Bxh7+ {[%clk 0:02:11.5]}
12... Kxh7 {[%clk 0:02:35.4]} 13. Ng5+ {[%clk 0:02:11.9]} 13... Kg6 {[%clk
0:02:10.6]} 14. Qd3+ {[%clk 0:01:43.8]} 14... Rf5 {[%clk 0:02:10.1]} 15. g4
{[%clk 0:01:44.3]} 15... Ndxe5 {[%clk 0:01:59.8]} 16. gxf5+ {[%clk 0:01:44]}
16... exf5 {[%clk 0:02:00.7]} 17. Qg3 {[%clk 0:01:41.5]} 17... Qe7 {[%clk
0:01:49.2]} 18. Nxd5 {[%clk 0:01:35]} 18... Nf3+ {[%clk 0:01:43.1]} 19. Kd1
{[%clk 0:01:35.1]} 19... Qd8 {[%clk 0:01:31.4]} 20. Ne6+ {[%clk 0:01:25.8]}
20... Kf7 {[%clk 0:01:28.3]} 21. Nxd8+ {[%clk 0:01:25]} 21... Nxd8 {[%clk
0:01:28]} 22. Qxf3 {[%clk 0:01:24.4]} 22... Be6 {[%clk 0:01:27.6]} 23. Nc7
{[%clk 0:01:19.9]} 23... Rc8 {[%clk 0:01:26.3]} 24. Qh5+ {[%clk 0:01:13.4]}
24... Kg8 {[%clk 0:01:25.4]} 25. Qe8+ {[%clk 0:01:11.4]} 25... Kh7 {[%clk
0:01:25]} 26. Nxe6 {[%clk 0:01:10.8]} 1-0

[Event "Late-Titled-Tuesday-Blitz-January-16-2024"]
[Site "Chess.com"]
[Date "2024.01.16"]
[Round "10"]
[White "aghasiyevkamal"]
[Black "texie1"]
[Result "1-0"]
[WhiteElo "2628"]
[BlackElo "2513"]
[TimeControl "180+1"]
[EndTime "15:54:34 PST"]
[Termination "aghasiyevkamal won by resignation"]

1. e4 {[%clk 0:03:00.1]} 1... c5 {[%clk 0:02:49.4]} 2. Nf3 {[%clk 0:02:59.6]}
2... d6 {[%clk 0:02:49.7]} 3. d4 {[%clk 0:02:59.2]} 3... cxd4 {[%clk 0:02:50.6]}
4. Nxd4 {[%clk 0:02:59.8]} 4... Nf6 {[%clk 0:02:51.3]} 5. Nc3 {[%clk 0:03:00.4]}
5... a6 {[%clk 0:02:51.3]} 6. Bg5 {[%clk 0:03:00.4]} 6... Nc6 {[%clk 0:02:50.8]}
7. Nxc6 {[%clk 0:02:38]} 7... bxc6 {[%clk 0:02:35.7]} 8. Bd3 {[%clk 0:02:31]}
8... h6 {[%clk 0:02:31.8]} 9. Bd2 {[%clk 0:02:18.4]} 9... g6 {[%clk 0:02:28.1]}
10. O-O {[%clk 0:02:18]} 10... Bg7 {[%clk 0:02:28.3]} 11. h3 {[%clk 0:02:16.1]}
11... O-O {[%clk 0:02:27.6]} 12. Qe1 {[%clk 0:02:16.5]} 12... e5 {[%clk
0:02:23.4]} 13. f4 {[%clk 0:02:03.4]} 13... Qe7 {[%clk 0:02:21]} 14. Qf2 {[%clk
0:01:56.1]} 14... Bb7 {[%clk 0:02:12.5]} 15. fxe5 {[%clk 0:01:51.1]} 15... dxe5
{[%clk 0:01:43]} 16. Na4 {[%clk 0:01:50.1]} 16... Nd7 {[%clk 0:01:37.3]} 17. Be3
{[%clk 0:01:46.9]} 17... a5 {[%clk 0:01:33.5]} 18. Nc5 {[%clk 0:01:46.4]} 18...
Bc8 {[%clk 0:01:31]} 19. Rad1 {[%clk 0:01:36.6]} 19... Kh7 {[%clk 0:01:15.3]}
20. Bc4 {[%clk 0:01:25.8]} 20... Nf6 {[%clk 0:01:09.7]} 21. a4 {[%clk
0:01:20.8]} 21... Be6 {[%clk 0:01:01.5]} 22. Nxe6 {[%clk 0:01:18.9]} 22... fxe6
{[%clk 0:01:00.4]} 23. Bc5 {[%clk 0:01:18.8]} 23... Nxe4 {[%clk 0:00:53.6]} 24.
Bxe7 {[%clk 0:01:16.8]} 24... Nxf2 {[%clk 0:00:53.7]} 25. Rxf2 {[%clk
0:01:11.9]} 25... Rxf2 {[%clk 0:00:50.2]} 26. Kxf2 {[%clk 0:01:12.2]} 26... Ra7
{[%clk 0:00:50.2]} 27. Bc5 {[%clk 0:01:07.8]} 27... e4 {[%clk 0:00:50.2]} 28.
Bxa7 {[%clk 0:01:07.1]} 1-0

[Event "Late-Titled-Tuesday-Blitz-January-16-2024"]
[Site "Chess.com"]
[Date "2024.01.16"]
[Round "10"]
[White "VitorBronson"]
[Black "cassoulet"]
[Result "1-0"]
[WhiteElo "2587"]
[BlackElo "2751"]
[TimeControl "180+1"]
[EndTime "15:54:54 PST"]
[Termination "VitorBronson won by checkmate"]

1. d4 {[%clk 0:03:00.9]} 1... Nf6 {[%clk 0:02:57.3]} 2. c4 {[%clk 0:03:00.7]}
2... g6 {[%clk 0:02:56.9]} 3. Nc3 {[%clk 0:03:00.4]} 3... d5 {[%clk 0:02:57.4]}
4. Nf3 {[%clk 0:03:00.1]} 4... Bg7 {[%clk 0:02:56.9]} 5. Qb3 {[%clk 0:03:00.2]}
5... dxc4 {[%clk 0:02:56.8]} 6. Qxc4 {[%clk 0:03:00.5]} 6... O-O {[%clk
0:02:57.5]} 7. e4 {[%clk 0:03:00.8]} 7... a6 {[%clk 0:02:58]} 8. Be2 {[%clk
0:03:00.2]} 8... b5 {[%clk 0:02:58.3]} 9. Qb3 {[%clk 0:02:59.7]} 9... Bb7 {[%clk
0:02:56.8]} 10. e5 {[%clk 0:02:57.3]} 10... Nd5 {[%clk 0:02:55.7]} 11. O-O
{[%clk 0:02:53.5]} 11... e6 {[%clk 0:02:55.2]} 12. Bg5 {[%clk 0:02:50.2]} 12...
Qd7 {[%clk 0:02:53.4]} 13. Ne4 {[%clk 0:02:49.5]} 13... Nf4 {[%clk 0:02:39]} 14.
Bxf4 {[%clk 0:02:43.5]} 14... Bxe4 {[%clk 0:02:38.7]} 15. Rfd1 {[%clk
0:02:38.6]} 15... Nc6 {[%clk 0:02:35.4]} 16. Rac1 {[%clk 0:02:37.8]} 16... Ne7
{[%clk 0:02:31.7]} 17. Ng5 {[%clk 0:02:34.2]} 17... Bd5 {[%clk 0:02:29.2]} 18.
Qh3 {[%clk 0:02:29.7]} 18... h6 {[%clk 0:02:23.9]} 19. Nf3 {[%clk 0:02:29]}
19... g5 {[%clk 0:02:12.7]} 20. Bxg5 {[%clk 0:02:27.8]} 20... hxg5 {[%clk
0:01:59.2]} 21. Nxg5 {[%clk 0:02:25.7]} 21... Rfc8 {[%clk 0:01:58.4]} 22. Rc3
{[%clk 0:02:17.2]} 22... Ng6 {[%clk 0:01:54.1]} 23. Qh7+ {[%clk 0:02:06.7]}
23... Kf8 {[%clk 0:01:53.4]} 24. Rg3 {[%clk 0:02:06.5]} 24... Qe7 {[%clk
0:01:20.9]} 25. Bh5 {[%clk 0:01:56.7]} 25... Nxe5 {[%clk 0:00:27.9]} 26. dxe5
{[%clk 0:01:38.3]} 26... Bxe5 {[%clk 0:00:28.8]} 27. Nxf7 {[%clk 0:01:08.5]}
27... Bxg3 {[%clk 0:00:28.7]} 28. Qh8# {[%clk 0:01:08.1]} 1-0

[Event "Late-Titled-Tuesday-Blitz-January-16-2024"]
[Site "Chess.com"]
[Date "2024.01.16"]
[Round "10"]
[White "ThaBarWa"]
[Black "Rgoltsman"]
[Result "0-1"]
[WhiteElo "2395"]
[BlackElo "2258"]
[TimeControl "180+1"]
[EndTime "15:54:54 PST"]
[Termination "Rgoltsman won on time"]

1. e4 {[%clk 0:02:59.9]} 1... e5 {[%clk 0:02:57.8]} 2. Nf3 {[%clk 0:02:59.3]}
2... Nc6 {[%clk 0:02:57.5]} 3. Bc4 {[%clk 0:02:58.5]} 3... Bc5 {[%clk
0:02:56.6]} 4. d3 {[%clk 0:02:58.5]} 4... d6 {[%clk 0:02:54.6]} 5. c3 {[%clk
0:02:58.7]} 5... Nf6 {[%clk 0:02:52.9]} 6. O-O {[%clk 0:02:58]} 6... Bg4 {[%clk
0:02:52]} 7. h3 {[%clk 0:02:55.6]} 7... h5 {[%clk 0:02:51.6]} 8. Nbd2 {[%clk
0:02:46.8]} 8... Qd7 {[%clk 0:02:51.1]} 9. b4 {[%clk 0:02:03.6]} 9... Bb6 {[%clk
0:02:49.9]} 10. Qe2 {[%clk 0:01:57.8]} 10... Bxh3 {[%clk 0:02:47.4]} 11. gxh3
{[%clk 0:01:58.7]} 11... Qxh3 {[%clk 0:02:47.6]} 12. Bxf7+ {[%clk 0:01:47.7]}
12... Ke7 {[%clk 0:02:41.4]} 13. Bd5 {[%clk 0:01:39.3]} 13... Ng4 {[%clk
0:02:34.5]} 14. d4 {[%clk 0:01:30.5]} 14... exd4 {[%clk 0:02:20.8]} 15. Bxc6
{[%clk 0:01:29.2]} 15... bxc6 {[%clk 0:02:08.2]} 16. e5 {[%clk 0:01:12.8]} 16...
d5 {[%clk 0:02:03.3]} 17. c4 {[%clk 0:00:47.4]} 17... d3 {[%clk 0:01:19.2]} 18.
Qxd3 {[%clk 0:00:47.1]} 18... Qg3+ {[%clk 0:01:18.7]} 19. Kh1 {[%clk 0:00:47.6]}
19... Bxf2 {[%clk 0:01:19.1]} 0-1

[Event "Late-Titled-Tuesday-Blitz-January-16-2024"]
[Site "Chess.com"]
[Date "2024.01.16"]
[Round "10"]
[White "MaxLeto"]
[Black "PawnEatingZombie"]
[Result "1-0"]
[WhiteElo "2375"]
[BlackElo "2146"]
[TimeControl "180+1"]
[EndTime "15:55:02 PST"]
[Termination "MaxLeto won by resignation"]

1. g4 {[%clk 0:03:00.9]} 1... e5 {[%clk 0:02:58.5]} 2. Bg2 {[%clk 0:03:01.8]}
2... Ne7 {[%clk 0:02:58.5]} 3. c4 {[%clk 0:03:01.3]} 3... Ng6 {[%clk 0:02:58.8]}
4. Nc3 {[%clk 0:03:00.9]} 4... Nh4 {[%clk 0:02:58.8]} 5. Be4 {[%clk 0:03:01.4]}
5... c6 {[%clk 0:02:58]} 6. d3 {[%clk 0:03:00.5]} 6... Na6 {[%clk 0:02:49.7]} 7.
Nf3 {[%clk 0:02:48.5]} 7... Ng2+ {[%clk 0:02:40.8]} 8. Kf1 {[%clk 0:02:48.2]}
8... Nf4 {[%clk 0:02:41.3]} 9. Nxe5 {[%clk 0:02:47.2]} 9... g5 {[%clk
0:02:24.6]} 10. e3 {[%clk 0:02:27.7]} 10... Ne6 {[%clk 0:02:23.7]} 11. Qf3
{[%clk 0:02:28.3]} 11... Qe7 {[%clk 0:02:19.6]} 12. d4 {[%clk 0:02:26.4]} 12...
Bg7 {[%clk 0:02:19]} 13. b3 {[%clk 0:02:09.7]} 13... d6 {[%clk 0:02:11.3]} 14.
Nd3 {[%clk 0:02:07.6]} 14... c5 {[%clk 0:02:02.7]} 15. Nd5 {[%clk 0:02:01.8]}
15... Qd8 {[%clk 0:02:00]} 16. Bb2 {[%clk 0:01:25.4]} 16... cxd4 {[%clk
0:01:59.9]} 17. Re1 {[%clk 0:01:06.8]} 17... O-O {[%clk 0:01:58.4]} 18. Qf5
{[%clk 0:01:02.9]} 18... Re8 {[%clk 0:01:45.8]} 19. Qxh7+ {[%clk 0:01:00.5]}
19... Kf8 {[%clk 0:01:46.3]} 20. h4 {[%clk 0:00:55.9]} 20... Nac5 {[%clk
0:01:28]} 21. Nxc5 {[%clk 0:00:54.6]} 21... dxc5 {[%clk 0:01:27.3]} 22. h5
{[%clk 0:00:53.1]} 22... Nc7 {[%clk 0:01:03.3]} 23. h6 {[%clk 0:00:49.7]} 23...
Be5 {[%clk 0:01:02.5]} 24. exd4 {[%clk 0:00:32.6]} 24... cxd4 {[%clk 0:01:01.4]}
25. Ba3+ {[%clk 0:00:30.6]} 1-0